[Event "XI Continental-ch America 2016"]
[Site "San Salvador"]
[Date "2016.05.30"]
[Round "4"]
[White "Pichot, Alan"]
[Black "Ortiz Suarez, Isan Reynaldo"]
[Result "1-0"]
[ECO "B90"]
[WhiteElo "2532"]
[BlackElo "2578"]
[PlyCount "61"]
[EventDate "2016.??.??"]
[EventCountry "ESA"]
[TimeControl "40/5400+30:1800+30"]
[WhiteClock "0:27:31"]
[BlackClock "0:05:48"]

1. e4 {[%emt 0:00:00]} c5 {[%emt 0:00:00]} 2. Nf3 {[%emt 0:00:00]} d6 {[%emt 0:
00:00]} 3. d4 {[%emt 0:00:00]} cxd4 {[%emt 0:00:00]} 4. Nxd4 {[%emt 0:00:00]}
Nf6 {[%emt 0:00:00]} 5. Nc3 {[%emt 0:00:00]} a6 {[%emt 0:00:00]} 6. Qd3 {
[%emt 0:00:01]} g6 {[%emt 0:02:14]} 7. Bg5 {[%emt 0:00:30]} Bg7 {[%emt 0:01:02]
} 8. O-O-O {[%emt 0:00:07]} Nbd7 {[%emt 0:01:21]} 9. f4 {[%emt 0:01:10]} O-O {
[%emt 0:02:14]} 10. Be2 {[%emt 0:00:06]} Qc7 {[%emt 0:02:48]} 11. h4 {[%emt 0:
00:11]} e5 {[%emt 0:11:49]} 12. Nb3 {[%emt 0:00:12]} h6 {[%emt 0:00:05]} 13. f5
{[%emt 0:07:47]} d5 {[%emt 0:14:02]} 14. Qg3 {[%emt 0:10:45]} Nxe4 {[%emt 0:02:
31]} 15. Nxe4 {[%emt 0:01:28]} dxe4 {[%emt 0:00:05]} 16. Be7 {[%emt 0:02:24]}
Re8 {[%emt 0:14:41]} 17. Bd6 {[%emt 0:00:19]} Qc6 {[%emt 0:01:27]} 18. fxg6 {
[%emt 0:05:54]} f5 {[%emt 0:00:16]} 19. Na5 {[%emt 0:01:17]} Qa4 {[%emt 0:09:
58]} 20. Bc4+ {[%emt 0:13:10]} Kh8 {[%emt 0:00:05]} 21. Qc3 {[%emt 0:01:01]} e3
{[%emt 0:10:35]} 22. Bf7 {[%emt 0:02:23]} e2 {[%emt 0:06:32]} 23. Bxe8 {
[%emt 0:06:37]} exd1=Q+ {[%emt 0:00:40]} 24. Rxd1 {[%emt 0:00:04]} Qxh4 {
[%emt 0:02:11]} 25. Nc4 {[%emt 0:07:07]} e4 {[%emt 0:04:06]} 26. Qg3 {[%emt 0:
05:58]} Qd8 {[%emt 0:06:43]} 27. Bxd7 {[%emt 0:06:41]} Bxd7 {[%emt 0:00:10]}
28. Be5 {[%emt 0:00:12]} Rc8 {[%emt 0:02:52]} 29. Nd6 {[%emt 0:02:07]} Qe7 {
[%emt 0:00:38]} 30. Nxc8 {[%emt 0:00:16]} Bxc8 {[%emt 0:00:07]} 31. Bxg7+ {
[%emt 0:00:12]} 1-0

[Event "XI Continental-ch America 2016"]
[Site "San Salvador"]
[Date "2016.05.30"]
[Round "4"]
[White "Bruzon Batista, Lazaro"]
[Black "Arias, Lemnys"]
[Result "1-0"]
[ECO "D10"]
[WhiteElo "2681"]
[BlackElo "2309"]
[PlyCount "61"]
[EventDate "2016.??.??"]
[EventCountry "ESA"]
[TimeControl "40/5400+30:1800+30"]
[WhiteClock "0:33:39"]
[BlackClock "0:47:41"]

1. d4 {[%emt 0:00:00]} d5 {[%emt 0:00:32]} 2. c4 {[%emt 0:00:00]} c6 {[%emt 0:
00:02]} 3. Nc3 {[%emt 0:00:00]} Nf6 {[%emt 0:00:02]} 4. e3 {[%emt 0:01:01]} a6
{[%emt 0:00:07]} 5. Nf3 {[%emt 0:01:38]} g6 {[%emt 0:00:02]} 6. Bd3 {[%emt 0:
02:50]} Bg7 {[%emt 0:01:12]} 7. O-O {[%emt 0:00:12]} O-O {[%emt 0:00:03]} 8.
Qc2 {[%emt 0:01:00]} b5 {[%emt 0:09:50]} 9. b3 {[%emt 0:01:38]} Bb7 {[%emt 0:
02:38]} 10. Rd1 {[%emt 0:02:01]} Nbd7 {[%emt 0:01:06]} 11. Bb2 {[%emt 0:02:35]}
e6 {[%emt 0:01:59]} 12. Ba3 {[%emt 0:10:43]} Re8 {[%emt 0:01:06]} 13. Bd6 {
[%emt 0:00:04]} Rc8 {[%emt 0:00:04]} 14. c5 {[%emt 0:08:00]} Bf8 {[%emt 0:02:
08]} 15. Bxf8 {[%emt 0:02:07]} Kxf8 {[%emt 0:00:01]} 16. b4 {[%emt 0:06:28]} e5
{[%emt 0:00:54]} 17. dxe5 {[%emt 0:00:47]} Nxe5 {[%emt 0:01:42]} 18. Nxe5 {
[%emt 0:00:05]} Rxe5 {[%emt 0:00:01]} 19. a4 {[%emt 0:01:39]} Qe7 {[%emt 0:04:
53]} 20. h3 {[%emt 0:09:31]} Kg8 {[%emt 0:07:34]} 21. Ne2 {[%emt 0:00:27]} Ne4
{[%emt 0:04:03]} 22. f4 {[%emt 0:05:29]} Rh5 {[%emt 0:08:09]} 23. Bxe4 {
[%emt 0:00:17]} dxe4 {[%emt 0:00:01]} 24. Ng3 {[%emt 0:04:34]} Rd5 {[%emt 0:00:
03]} 25. Rxd5 {[%emt 0:03:48]} cxd5 {[%emt 0:01:34]} 26. axb5 {[%emt 0:00:03]}
axb5 {[%emt 0:00:06]} 27. Ne2 {[%emt 0:00:09]} Bc6 {[%emt 0:00:22]} 28. Nd4 {
[%emt 0:00:39]} Be8 {[%emt 0:00:17]} 29. Ra6 {[%emt 0:00:53]} Rd8 {[%emt 0:05:
10]} 30. Kh2 {[%emt 0:01:00]} Qh4 {[%emt 0:01:38]} 31. Qc3 {[%emt 0:02:13]} 1-0

[Event "XI Continental-ch America 2016"]
[Site "San Salvador"]
[Date "2016.05.30"]
[Round "4"]
[White "Erenburg, Sergey"]
[Black "Quintiliano, Renato"]
[Result "1-0"]
[ECO "B90"]
[WhiteElo "2587"]
[BlackElo "2441"]
[PlyCount "109"]
[EventDate "2016.??.??"]
[EventCountry "ESA"]
[TimeControl "40/5400+30:1800+30"]
[WhiteClock "0:13:49"]
[BlackClock "0:18:18"]

1. e4 {[%emt 0:00:00]} c5 {[%emt 0:00:00]} 2. Nf3 {[%emt 0:00:00]} d6 {[%emt 0:
00:03]} 3. d4 {[%emt 0:00:00]} cxd4 {[%emt 0:00:13]} 4. Nxd4 {[%emt 0:00:00]}
Nf6 {[%emt 0:00:34]} 5. Nc3 {[%emt 0:00:00]} a6 {[%emt 0:00:18]} 6. Be3 {
[%emt 0:00:00]} e5 {[%emt 0:00:23]} 7. Nf3 {[%emt 0:00:00]} Be7 {[%emt 0:00:47]
} 8. Bc4 {[%emt 0:00:00]} O-O {[%emt 0:00:41]} 9. O-O {[%emt 0:00:00]} Qc7 {
[%emt 0:02:53]} 10. Bb3 {[%emt 0:00:00]} Be6 {[%emt 0:00:44]} 11. Nh4 {[%emt 0:
00:41]} g6 {[%emt 0:01:09]} 12. Bh6 {[%emt 0:00:22]} Re8 {[%emt 0:00:35]} 13.
Qd2 {[%emt 0:00:09]} Ng4 {[%emt 0:03:48]} 14. Nf3 {[%emt 0:02:34]} Nd7 {
[%emt 0:01:16]} 15. Rfd1 {[%emt 0:13:34]} Rac8 {[%emt 0:26:04]} 16. Bg5 {
[%emt 0:16:13]} Ngf6 {[%emt 0:00:20]} 17. Ne1 {[%emt 0:03:59]} Qb8 {[%emt 0:09:
17]} 18. Bxf6 {[%emt 0:08:00]} Nxf6 {[%emt 0:00:06]} 19. Nd3 {[%emt 0:00:34]}
b5 {[%emt 0:14:52]} 20. Nb4 {[%emt 0:03:16]} a5 {[%emt 0:06:28]} 21. Nbd5 {
[%emt 0:00:58]} Nxd5 {[%emt 0:06:10]} 22. Nxd5 {[%emt 0:00:25]} a4 {[%emt 0:08:
27]} 23. Nxe7+ {[%emt 0:00:16]} Rxe7 {[%emt 0:00:03]} 24. Bxe6 {[%emt 0:00:11]}
Rxe6 {[%emt 0:01:34]} 25. c3 {[%emt 0:01:56]} Rc4 {[%emt 0:00:46]} 26. Qd3 {
[%emt 0:01:04]} Qb7 {[%emt 0:01:14]} 27. f3 {[%emt 0:02:29]} Qc6 {[%emt 0:00:
11]} 28. a3 {[%emt 0:00:57]} Qb6+ {[%emt 0:00:27]} 29. Kh1 {[%emt 0:00:20]} Rc6
{[%emt 0:00:18]} 30. Qe2 {[%emt 0:00:35]} f5 {[%emt 0:04:36]} 31. Rd5 {[%emt 0:
13:30]} Rc4 {[%emt 0:00:07]} 32. exf5 {[%emt 0:04:28]} gxf5 {[%emt 0:00:04]}
33. Rad1 {[%emt 0:00:14]} Rg6 {[%emt 0:05:13]} 34. Qd2 {[%emt 0:00:54]} Rc6 {
[%emt 0:01:30]} 35. f4 {[%emt 0:00:40]} exf4 {[%emt 0:04:04]} 36. Rxf5 {
[%emt 0:01:19]} Qe3 {[%emt 0:00:44]} 37. Qd5+ {[%emt 0:00:29]} Qe6 {[%emt 0:00:
05]} 38. Rxf4 {[%emt 0:24:56]} Qxd5 {[%emt 0:00:11]} 39. Rxd5 {[%emt 0:00:02]}
Rc5 {[%emt 0:00:29]} 40. Rd2 {[%emt 0:00:23]} Re5 {[%emt 0:01:28]} 41. h3 {
[%emt 0:34:10]} Rge6 {[%emt 0:30:49]} 42. Kg1 {[%emt 0:00:00]} Re2 {[%emt 0:00:
00]} 43. Rxe2 {[%emt 0:00:00]} Rxe2 {[%emt 0:00:00]} 44. Rb4 {[%emt 0:00:00]}
Re5 {[%emt 0:00:00]} 45. Kf2 {[%emt 0:00:00]} Kf7 {[%emt 0:00:00]} 46. Kf3 {
[%emt 0:00:00]} Rc5 {[%emt 0:00:00]} 47. Re4 {[%emt 0:00:00]} Kf6 {[%emt 0:00:
00]} 48. g4 {[%emt 0:00:00]} h5 {[%emt 0:00:00]} 49. Kf4 {[%emt 0:00:00]} hxg4
{[%emt 0:00:00]} 50. hxg4 {[%emt 0:00:00]} Rc8 {[%emt 0:00:00]} 51. g5+ {
[%emt 0:00:00]} Kf7 {[%emt 0:00:00]} 52. Kg4 {[%emt 0:00:00]} Rc5 {[%emt 0:00:
00]} 53. Rf4+ {[%emt 0:00:00]} Kg7 {[%emt 0:00:00]} 54. Rf5 {[%emt 0:00:00]} d5
{[%emt 0:00:00]} 55. Kh5 1-0

[Event "XI Continental-ch America 2016"]
[Site "San Salvador"]
[Date "2016.05.30"]
[Round "4"]
[White "Arenas, David"]
[Black "Liang, Awonder"]
[Result "0-1"]
[ECO "C86"]
[WhiteElo "2496"]
[BlackElo "2410"]
[PlyCount "116"]
[EventDate "2016.??.??"]
[EventCountry "ESA"]
[TimeControl "40/5400+30:1800+30"]
[WhiteClock "0:02:54"]
[BlackClock "0:01:32"]

1. e4 {[%emt 0:05:11]} e5 {[%emt 0:00:00]} 2. Nf3 {[%emt 0:00:30]} Nc6 {
[%emt 0:00:00]} 3. Bb5 {[%emt 0:00:04]} a6 {[%emt 0:00:00]} 4. Ba4 {[%emt 0:00:
18]} Nf6 {[%emt 0:00:12]} 5. O-O {[%emt 0:00:20]} Be7 {[%emt 0:00:27]} 6. Qe2 {
[%emt 0:00:45]} b5 {[%emt 0:00:33]} 7. Bb3 {[%emt 0:00:15]} O-O {[%emt 0:00:12]
} 8. c3 {[%emt 0:00:31]} d5 {[%emt 0:00:31]} 9. d3 {[%emt 0:00:14]} Bb7 {
[%emt 0:00:18]} 10. Nbd2 {[%emt 0:01:46]} Re8 {[%emt 0:00:44]} 11. Rd1 {
[%emt 0:01:39]} Bf8 {[%emt 0:00:59]} 12. Nf1 {[%emt 0:01:26]} Na5 {[%emt 0:00:
49]} 13. Bc2 {[%emt 0:00:10]} c5 {[%emt 0:00:26]} 14. Ng3 {[%emt 0:02:16]} Qb6
{[%emt 0:02:36]} 15. h3 {[%emt 0:05:59]} d4 {[%emt 0:06:52]} 16. Bd2 {[%emt 0:
09:04]} dxc3 {[%emt 0:15:07]} 17. bxc3 {[%emt 0:01:20]} Rad8 {[%emt 0:01:38]}
18. Be3 {[%emt 0:02:22]} Qc7 {[%emt 0:13:46]} 19. Nd2 {[%emt 0:02:58]} Bc8 {
[%emt 0:03:41]} 20. Qf3 {[%emt 0:12:54]} Re6 {[%emt 0:08:45]} 21. Rac1 {
[%emt 0:04:33]} g6 {[%emt 0:04:58]} 22. d4 {[%emt 0:10:30]} cxd4 {[%emt 0:12:
20]} 23. cxd4 {[%emt 0:00:20]} Rc6 {[%emt 0:03:40]} 24. Nb3 {[%emt 0:05:42]}
Rxc2 {[%emt 0:04:16]} 25. Rxc2 {[%emt 0:08:18]} Qxc2 {[%emt 0:00:11]} 26. Rc1 {
[%emt 0:00:01]} Qxa2 {[%emt 0:03:04]} 27. Qxf6 {[%emt 0:00:14]} Re8 {[%emt 0:
00:54]} 28. Nxa5 {[%emt 0:04:19]} Qxa5 {[%emt 0:00:11]} 29. d5 {[%emt 0:00:05]}
Bd7 {[%emt 0:03:34]} 30. Bb6 {[%emt 0:02:15]} Qa3 {[%emt 0:03:36]} 31. Rc7 {
[%emt 0:03:11]} Bg7 {[%emt 0:02:35]} 32. Qg5 {[%emt 0:02:16]} Qd6 {[%emt 0:00:
53]} 33. Ba5 {[%emt 0:02:16]} Rc8 {[%emt 0:03:31]} 34. Rb7 {[%emt 0:01:52]} h6
{[%emt 0:01:11]} 35. Qe3 {[%emt 0:02:14]} Bf8 {[%emt 0:00:48]} 36. Kh2 {
[%emt 0:04:12]} Be8 {[%emt 0:01:33]} 37. Qa7 {[%emt 0:01:51]} h5 {[%emt 0:00:
52]} 38. Bc7 {[%emt 0:02:00]} Qf6 {[%emt 0:00:51]} 39. Rb8 {[%emt 0:00:17]} Bd7
{[%emt 0:01:42]} 40. Rxc8 {[%emt 0:00:52]} Bxc8 {[%emt 0:00:02]} 41. Qb8 {
[%emt 0:30:34]} Bd7 {[%emt 0:02:00]} 42. Bxe5 {[%emt 0:00:00]} Qe7 {[%emt 0:00:
22]} 43. Qc7 {[%emt 0:00:00]} h4 {[%emt 0:08:11]} 44. Ne2 {[%emt 0:00:00]} f6 {
[%emt 0:01:48]} 45. Bxf6 {[%emt 0:00:00]} Qxf6 {[%emt 0:00:07]} 46. Qxd7 {
[%emt 0:00:00]} Qxf2 {[%emt 0:03:14]} 47. Qe6+ {[%emt 0:00:00]} Kg7 {[%emt 0:
07:09]} 48. e5 {[%emt 0:00:00]} Qxe2 {[%emt 0:03:37]} 49. d6 {[%emt 0:01:40]}
Kh7 {[%emt 0:03:35]} 50. Qf6 {[%emt 0:04:41]} Bg7 {[%emt 0:01:13]} 51. Qxh4+ {
[%emt 0:00:02]} Qh5 {[%emt 0:00:06]} 52. Qe7 {[%emt 0:00:02]} Qxe5+ {[%emt 0:
00:11]} 53. g3 {[%emt 0:00:00]} Qf6 {[%emt 0:03:06]} 54. g4 {[%emt 0:01:12]} b4
55. g5 Qf2+ {[%emt 0:01:00]} 56. Kh1 {[%emt 0:00:23]} b3 {[%emt 0:02:00]} 57.
d7 {[%emt 0:00:11]} b2 {[%emt 0:00:34]} 58. Qe4 {[%emt 0:00:01]} b1=Q+ {
[%emt 0:00:57]} 0-1

[Event "XI Continental-ch America 2016"]
[Site "San Salvador"]
[Date "2016.05.31"]
[Round "5"]
[White "Mareco, Sandro"]
[Black "Lenderman, Aleksandr"]
[Result "1/2-1/2"]
[ECO "A09"]
[WhiteElo "2625"]
[BlackElo "2614"]
[PlyCount "59"]
[EventDate "2016.??.??"]
[EventCountry "ESA"]
[TimeControl "40/5400+30:1800+30"]
[WhiteClock "0:37:31"]
[BlackClock "0:14:22"]

1. Nf3 {[%emt 0:00:00]} d5 {[%emt 0:00:00]} 2. c4 {[%emt 0:00:00]} d4 {[%emt 0:
00:00]} 3. g3 {[%emt 0:00:00]} Nc6 {[%emt 0:00:17]} 4. Bg2 {[%emt 0:00:00]} e5
{[%emt 0:00:09]} 5. d3 {[%emt 0:00:00]} Nf6 {[%emt 0:00:23]} 6. O-O {[%emt 0:
00:00]} Bd6 {[%emt 0:00:25]} 7. Na3 {[%emt 0:02:29]} h6 {[%emt 0:07:33]} 8. Nc2
{[%emt 0:03:30]} O-O {[%emt 0:00:50]} 9. a3 {[%emt 0:04:56]} a5 {[%emt 0:00:14]
} 10. Bd2 {[%emt 0:07:07]} a4 {[%emt 0:01:41]} 11. Nb4 {[%emt 0:01:48]} Bd7 {
[%emt 0:02:22]} 12. Rc1 {[%emt 0:00:26]} Re8 {[%emt 0:02:10]} 13. Ne1 {[%emt 0:
08:58]} e4 {[%emt 0:18:32]} 14. Nd5 {[%emt 0:05:56]} Nxd5 {[%emt 0:04:28]} 15.
cxd5 {[%emt 0:00:07]} exd3 {[%emt 0:00:10]} 16. Nxd3 {[%emt 0:08:34]} Na5 {
[%emt 0:04:33]} 17. Bxa5 {[%emt 0:03:31]} Rxa5 {[%emt 0:00:17]} 18. Rc4 {
[%emt 0:00:04]} Qf6 {[%emt 0:02:20]} 19. Qd2 {[%emt 0:00:46]} b6 {[%emt 0:01:
45]} 20. Nc1 {[%emt 0:01:12]} Bc5 {[%emt 0:09:07]} 21. b4 {[%emt 0:02:01]} axb3
{[%emt 0:00:04]} 22. Nxb3 {[%emt 0:00:03]} Rxa3 {[%emt 0:01:09]} 23. Nxc5 {
[%emt 0:00:09]} bxc5 {[%emt 0:01:35]} 24. Rxc5 {[%emt 0:00:05]} Rc3 {[%emt 0:
01:29]} 25. Rc1 {[%emt 0:01:07]} Rxc5 {[%emt 0:02:57]} 26. Rxc5 {[%emt 0:00:06]
} Qb6 {[%emt 0:01:44]} 27. Rc1 {[%emt 0:00:17]} Bg4 {[%emt 0:01:50]} 28. Bf1 {
[%emt 0:00:42]} Re7 {[%emt 0:16:43]} 29. Rc4 {[%emt 0:09:20]} Qb1 {[%emt 0:05:
21]} 30. Rc1 {[%emt 0:04:15]} 1/2-1/2

[Event "XI Continental-ch America 2016"]
[Site "San Salvador"]
[Date "2016.05.31"]
[Round "5"]
[White "Gonzalez, Yuri"]
[Black "Leiva, Giuseppe"]
[Result "1-0"]
[ECO "E12"]
[WhiteElo "2555"]
[BlackElo "2384"]
[PlyCount "51"]
[EventDate "2016.??.??"]
[EventCountry "ESA"]
[TimeControl "40/5400+30:1800+30"]
[WhiteClock "0:37:51"]
[BlackClock "0:01:13"]

1. d4 {[%emt 0:00:00]} Nf6 {[%emt 0:00:00]} 2. c4 {[%emt 0:00:00]} e6 {[%emt 0:
00:00]} 3. Nf3 {[%emt 0:00:00]} b6 {[%emt 0:00:32]} 4. a3 {[%emt 0:00:17]} Bb7
{[%emt 0:01:40]} 5. Nc3 {[%emt 0:00:21]} d5 {[%emt 0:00:06]} 6. Qc2 {[%emt 0:
00:24]} Be7 {[%emt 0:01:12]} 7. cxd5 {[%emt 0:01:00]} exd5 {[%emt 0:46:10]} 8.
Bf4 {[%emt 0:00:35]} O-O {[%emt 0:01:54]} 9. e3 {[%emt 0:00:56]} c5 {[%emt 0:
10:34]} 10. Bd3 {[%emt 0:00:51]} c4 {[%emt 0:09:21]} 11. Bf5 {[%emt 0:01:25]}
g6 {[%emt 0:00:36]} 12. Bh3 {[%emt 0:00:33]} Nc6 {[%emt 0:04:36]} 13. O-O {
[%emt 0:02:32]} Bc8 {[%emt 0:05:04]} 14. Ne5 {[%emt 0:04:58]} Na5 {[%emt 0:00:
04]} 15. Bxc8 {[%emt 0:03:54]} Qxc8 {[%emt 0:00:12]} 16. Bg5 {[%emt 0:03:06]}
Qb7 {[%emt 0:05:00]} 17. f4 {[%emt 0:01:39]} Rad8 {[%emt 0:02:10]} 18. f5 {
[%emt 0:01:15]} Kg7 {[%emt 0:00:09]} 19. Qf2 {[%emt 0:17:53]} h6 {[%emt 0:02:
42]} 20. Bxf6+ {[%emt 0:01:46]} Bxf6 {[%emt 0:00:07]} 21. Ng4 {[%emt 0:01:05]}
g5 {[%emt 0:05:01]} 22. Qf3 {[%emt 0:01:07]} Qc6 {[%emt 0:01:14]} 23. Ne2 {
[%emt 0:04:26]} c3 {[%emt 0:02:17]} 24. Ng3 {[%emt 0:02:31]} Rd6 {[%emt 0:00:
28]} 25. Nh5+ {[%emt 0:01:04]} Kh7 {[%emt 0:00:08]} 26. b4 {[%emt 0:11:31]} 1-0

[Event "XI Continental-ch America 2016"]
[Site "San Salvador"]
[Date "2016.05.31"]
[Round "5"]
[White "Gonzalez, Bernal"]
[Black "Minero, Sergio"]
[Result "1/2-1/2"]
[ECO "D79"]
[WhiteElo "2476"]
[BlackElo "2392"]
[PlyCount "20"]
[EventDate "2016.??.??"]
[EventCountry "ESA"]
[TimeControl "40/5400+30:1800+30"]
[WhiteClock "1:34:31"]
[BlackClock "1:34:31"]

1. d4 {[%emt 0:00:00]} Nf6 {[%emt 0:00:00]} 2. c4 {[%emt 0:00:00]} g6 {[%emt 0:
00:00]} 3. Nf3 {[%emt 0:00:00]} Bg7 {[%emt 0:00:00]} 4. g3 {[%emt 0:00:00]} O-O
{[%emt 0:00:00]} 5. Bg2 {[%emt 0:00:02]} c6 {[%emt 0:00:00]} 6. O-O {[%emt 0:
00:08]} d5 {[%emt 0:00:04]} 7. cxd5 {[%emt 0:00:04]} cxd5 {[%emt 0:00:02]} 8.
Nc3 {[%emt 0:00:04]} Nc6 {[%emt 0:00:05]} 9. Ne5 {[%emt 0:00:05]} e6 {[%emt 0:
00:14]} 10. Nxc6 {[%emt 0:00:06]} bxc6 {[%emt 0:00:04]} 1/2-1/2

[Event "XI Continental-ch America 2016"]
[Site "San Salvador"]
[Date "2016.05.31"]
[Round "5"]
[White "Pichot, Alan"]
[Black "Cordova, Emilio"]
[Result "0-1"]
[ECO "C10"]
[WhiteElo "2532"]
[BlackElo "2602"]
[PlyCount "42"]
[EventDate "2016.??.??"]
[EventCountry "ESA"]
[TimeControl "40/5400+30:1800+30"]
[WhiteClock "0:10:56"]
[BlackClock "0:32:14"]

1. e4 {[%emt 0:00:00]} e6 {[%emt 0:00:00]} 2. d4 {[%emt 0:00:00]} d5 {[%emt 0:
00:00]} 3. Nc3 {[%emt 0:00:00]} h6 {[%emt 0:00:17]} 4. e5 {[%emt 0:04:15]} c5 {
[%emt 0:00:28]} 5. dxc5 {[%emt 0:01:36]} Nc6 {[%emt 0:01:45]} 6. Nf3 {[%emt 0:
01:07]} Bxc5 {[%emt 0:00:46]} 7. Bd3 {[%emt 0:01:51]} a6 {[%emt 0:01:03]} 8.
O-O {[%emt 0:03:47]} Nge7 {[%emt 0:03:47]} 9. a3 {[%emt 0:05:52]} Ba7 {[%emt 0:
04:57]} 10. h3 {[%emt 0:10:24]} O-O {[%emt 0:03:18]} 11. Bf4 {[%emt 0:09:16]}
f5 {[%emt 0:09:58]} 12. exf6 {[%emt 0:05:40]} Rxf6 {[%emt 0:00:23]} 13. Bg3 {
[%emt 0:05:01]} Nf5 {[%emt 0:00:50]} 14. Bh2 {[%emt 0:02:11]} Bd7 {[%emt 0:22:
16]} 15. Ne2 {[%emt 0:03:13]} Rf7 {[%emt 0:07:19]} 16. c4 {[%emt 0:11:11]} dxc4
{[%emt 0:03:00]} 17. Bxc4 {[%emt 0:01:37]} Nh4 {[%emt 0:00:28]} 18. Nxh4 {
[%emt 0:15:26]} Qxh4 {[%emt 0:00:32]} 19. Nf4 {[%emt 0:00:30]} Rxf4 {[%emt 0:
04:56]} 20. g3 {[%emt 0:02:35]} Qxh3 {[%emt 0:01:28]} 21. gxf4 {[%emt 0:04:02]}
Nd4 {[%emt 0:00:45]} 0-1

[Event "XI Continental-ch America 2016"]
[Site "San Salvador"]
[Date "2016.05.31"]
[Round "5"]
[White "Valenzuela, Fernando"]
[Black "Bruzon Batista, Lazaro"]
[Result "0-1"]
[ECO "E21"]
[WhiteElo "2409"]
[BlackElo "2681"]
[PlyCount "106"]
[EventDate "2016.??.??"]
[EventCountry "ESA"]
[TimeControl "40/5400+30:1800+30"]
[WhiteClock "0:09:25"]
[BlackClock "0:18:00"]

1. d4 {[%emt 0:00:31]} Nf6 {[%emt 0:00:00]} 2. c4 {[%emt 0:00:11]} e6 {[%emt 0:
02:16]} 3. Nc3 {[%emt 0:00:13]} Bb4 {[%emt 0:00:05]} 4. Nf3 {[%emt 0:00:23]}
O-O {[%emt 0:00:42]} 5. Bg5 {[%emt 0:00:26]} h6 {[%emt 0:00:42]} 6. Bh4 {
[%emt 0:00:53]} d6 {[%emt 0:06:09]} 7. e3 {[%emt 0:00:59]} Nbd7 {[%emt 0:00:41]
} 8. a3 {[%emt 0:15:30]} Bxc3+ {[%emt 0:00:42]} 9. bxc3 {[%emt 0:00:03]} b6 {
[%emt 0:06:36]} 10. Bd3 {[%emt 0:02:17]} Bb7 {[%emt 0:02:24]} 11. O-O {[%emt 0:
00:56]} c5 {[%emt 0:24:35]} 12. Nd2 {[%emt 0:04:09]} Qc7 {[%emt 0:00:10]} 13.
Qe2 {[%emt 0:12:09]} Rfe8 {[%emt 0:01:49]} 14. Rac1 {[%emt 0:08:52]} Rac8 {
[%emt 0:02:27]} 15. f3 {[%emt 0:05:55]} Ba6 {[%emt 0:07:48]} 16. Ne4 {[%emt 0:
04:38]} Nh7 {[%emt 0:08:26]} 17. Bg3 {[%emt 0:03:28]} e5 {[%emt 0:00:04]} 18.
d5 {[%emt 0:03:03]} f5 {[%emt 0:01:39]} 19. Nf2 {[%emt 0:04:02]} g6 {[%emt 0:
02:30]} 20. h4 {[%emt 0:01:36]} Ndf6 {[%emt 0:01:28]} 21. Bh2 {[%emt 0:02:14]}
Kh8 {[%emt 0:06:54]} 22. g4 {[%emt 0:02:02]} fxg4 {[%emt 0:00:04]} 23. fxg4 {
[%emt 0:01:12]} Rg8 {[%emt 0:00:44]} 24. g5 {[%emt 0:03:36]} hxg5 {[%emt 0:00:
51]} 25. hxg5 {[%emt 0:00:28]} Nh5 {[%emt 0:02:46]} 26. Ne4 {[%emt 0:04:45]}
Rcf8 {[%emt 0:00:17]} 27. Ng3 {[%emt 0:03:47]} Nxg3 {[%emt 0:01:25]} 28. Bxg3 {
[%emt 0:00:05]} Qe7 {[%emt 0:00:08]} 29. Kg2 {[%emt 0:01:43]} Qxg5 30. Rh1 {
[%emt 0:07:25]} Bc8 {[%emt 0:02:25]} 31. Rh4 {[%emt 0:00:38]} Rf7 {[%emt 0:00:
47]} 32. Rch1 {[%emt 0:00:44]} Rgg7 {[%emt 0:02:14]} 33. Be4 {[%emt 0:01:13]}
Kg8 {[%emt 0:01:59]} 34. Bf3 {[%emt 0:00:32]} Bf5 {[%emt 0:05:36]} 35. e4 {
[%emt 0:00:16]} Bd7 {[%emt 0:00:04]} 36. Bg4 {[%emt 0:00:19]} Bxg4 {[%emt 0:02:
48]} 37. Rxg4 {[%emt 0:00:04]} Qf6 {[%emt 0:00:55]} 38. Rgh4 {[%emt 0:01:01]}
g5 {[%emt 0:02:41]} 39. Rh5 {[%emt 0:02:02]} g4 {[%emt 0:03:39]} 40. Rf5 {
[%emt 0:02:32]} Qg6 {[%emt 0:00:08]} 41. Rhh5 {[%emt 0:32:58]} Rxf5 {[%emt 0:
30:39]} 42. Rxf5 {[%emt 0:00:00]} Qh6 {[%emt 0:00:00]} 43. Qf2 {[%emt 0:00:00]}
Rg6 {[%emt 0:00:00]} 44. Kg1 {[%emt 0:00:00]} Ng5 {[%emt 0:00:00]} 45. Qc2 {
[%emt 0:00:00]} Nf3+ {[%emt 0:00:00]} 46. Kf2 {[%emt 0:00:00]} Qd2+ {[%emt 0:
00:00]} 47. Qxd2 {[%emt 0:00:00]} Nxd2 {[%emt 0:00:00]} 48. Ke3 {[%emt 0:00:00]
} Nxc4+ {[%emt 0:00:00]} 49. Kd3 {[%emt 0:00:00]} b5 {[%emt 0:00:00]} 50. Rf1 {
[%emt 0:00:00]} Nxa3 {[%emt 0:00:00]} 51. Ra1 {[%emt 0:00:00]} Nc4 {[%emt 0:00:
00]} 52. Rxa7 {[%emt 0:00:00]} Rf6 {[%emt 0:00:00]} 53. Ke2 {[%emt 0:00:00]}
Rf3 {[%emt 0:00:00]} 0-1

[Event "XI Continental-ch America 2016"]
[Site "San Salvador"]
[Date "2016.05.31"]
[Round "5"]
[White "Liang, Awonder"]
[Black "Erenburg, Sergey"]
[Result "1/2-1/2"]
[ECO "B11"]
[WhiteElo "2410"]
[BlackElo "2587"]
[PlyCount "34"]
[EventDate "2016.??.??"]
[EventCountry "ESA"]
[TimeControl "40/5400+30:1800+30"]
[WhiteClock "0:14:36"]
[BlackClock "0:17:13"]

1. e4 {[%emt 0:00:00]} c6 {[%emt 0:00:00]} 2. Nc3 {[%emt 0:00:00]} d5 {[%emt 0:
00:00]} 3. Nf3 {[%emt 0:00:00]} Bg4 {[%emt 0:00:00]} 4. h3 {[%emt 0:00:00]}
Bxf3 {[%emt 0:00:00]} 5. Qxf3 {[%emt 0:00:00]} Nf6 {[%emt 0:00:00]} 6. d3 {
[%emt 0:01:13]} e6 {[%emt 0:00:00]} 7. g3 {[%emt 0:09:32]} Bb4 {[%emt 0:01:40]}
8. Bd2 {[%emt 0:07:30]} Qb6 {[%emt 0:01:34]} 9. e5 {[%emt 0:10:37]} Nfd7 {
[%emt 0:00:36]} 10. Qg4 {[%emt 0:01:36]} Nxe5 {[%emt 0:27:34]} 11. Qxg7 {
[%emt 0:01:32]} Ng6 {[%emt 0:01:08]} 12. Be3 {[%emt 0:23:42]} Qd8 {[%emt 0:08:
31]} 13. h4 {[%emt 0:11:53]} h5 {[%emt 0:16:55]} 14. Bg5 {[%emt 0:05:06]} Qb6 {
[%emt 0:10:36]} 15. Be3 {[%emt 0:10:53]} Qd8 {[%emt 0:08:55]} 16. Bg5 {[%emt 0:
00:10]} Qb6 {[%emt 0:00:01]} 17. Be3 {[%emt 0:00:10]} Qd8 {[%emt 0:03:47]}
1/2-1/2

[Event "XI Continental-ch America 2016"]
[Site "San Salvador"]
[Date "2016.05.31"]
[Round "5"]
[White "Flores, Diego"]
[Black "Sanchez, Roberto Carlos"]
[Result "1/2-1/2"]
[ECO "A05"]
[WhiteElo "2592"]
[BlackElo "2397"]
[PlyCount "27"]
[EventDate "2016.??.??"]
[EventCountry "ESA"]
[TimeControl "40/5400+30:1800+30"]
[WhiteClock "0:12:10"]
[BlackClock "1:24:10"]

1. Nf3 {[%emt 0:00:17]} Nf6 {[%emt 0:00:05]} 2. c4 {[%emt 0:03:18]} c6 {
[%emt 0:00:19]} 3. g3 {[%emt 0:01:02]} g6 {[%emt 0:00:12]} 4. b3 {[%emt 0:01:
55]} Bg7 {[%emt 0:00:19]} 5. Bb2 {[%emt 0:00:05]} O-O {[%emt 0:00:18]} 6. Bg2 {
[%emt 0:00:06]} d5 {[%emt 0:03:09]} 7. d3 {[%emt 0:07:25]} Bg4 {[%emt 0:02:21]}
8. Nbd2 {[%emt 0:03:46]} Nbd7 {[%emt 0:00:16]} 9. O-O {[%emt 0:03:47]} Re8 {
[%emt 0:00:56]} 10. Ne5 {[%emt 0:07:41]} Nxe5 {[%emt 0:00:58]} 11. Bxe5 {
[%emt 0:00:28]} Qd7 {[%emt 0:00:20]} 12. d4 {[%emt 0:16:32]} Bh6 {[%emt 0:02:
02]} 13. Bxf6 {[%emt 0:37:58]} exf6 {[%emt 0:01:05]} 14. Nf3 1/2-1/2